[Event "HUN-ch Rapid 2018"]
[Site "Ajka"]
[Date "2018.07.20"]
[Round "4"]
[White "Horvath, Peter"]
[Black "Margl, Roland"]
[Result "1-0"]
[ECO "D02"]
[WhiteElo "2438"]
[BlackElo "2047"]
[Annotator "RC"]
[PlyCount "97"]
[EventDate "2018.07.20"]
[EventType "swiss"]
[EventCountry "HUN"]
[SourceTitle "playchess.com"]
[Source "ChessBase"]
[SourceQuality "1"]
[TimeControl "1200+5"]

1. d4 {[%emt 0:00:02]} d5 {[%emt 0:00:01]} 2. Nf3 {[%emt 0:00:03]} Nf6 {[%emt 0:00:01]} 3. Bf4 {[%emt 0:00:04]} e6 {[%emt 0:00:11]} 4. e3 {[%emt 0:00:09]} Bd6 {[%emt 0:00:02]} 5. Ne5 {[%emt 0:00:08]} O-O {[%emt 0:00:13]} 6. Nd2 {[%emt 0:00:12]} c5 {[%emt 0:00:08]} 7. c3 {[%emt 0:00:05]} Qc7 {[%emt 0:00:13]} 8. Bd3 {[%emt 0:00:56]} Nbd7 {[%emt 0:01:15]} 9. Ndf3 {[%emt 0:00:12]} b6 {[%emt 0:00:12]} 10. O-O {[%emt 0:00:54]} Bb7 {[%emt 0:00:05]} 11. Rc1 {[%emt 0:00:49]} Rfd8 {[%emt 0:00:51]} 12. Re1 {[%emt 0:00:27]} Rac8 {[%emt 0:01:34]} 13. Bb1 {[%emt 0:00:11]} Ne4 {[%emt 0:01:23]} 14. Nxd7 {[%emt 0:03:04]} Rxd7 {[%emt 0:01:35]} 15. Ne5 {[%emt 0:01:11]} Rdd8 {[%emt 0:00:27]} 16. Bxe4 {[%emt 0:01:39]} dxe4 {[%emt 0:00:03]} 17. Bg3 {[%emt 0:00:57]} cxd4 {[%emt 0:04:30]} 18. exd4 {[%emt 0:01:51]} f6 {[%emt 0:00:31]} 19. Ng4 {[%emt 0:00:02]} Bxg3 {[%emt 0:00:01]} 20. hxg3 {[%emt 0:00:08]} e5 {[%emt 0:01:08]} 21. Qb3+ {[%emt 0:03:30]} Bd5 {[%emt 0:02:59]} 22. Qa3 {[%emt 0:00:02]} exd4 {[%emt 0:01:49]} 23. cxd4 {[%emt 0:00:03]} Qd7 {[%emt 0:00:01]} 24. Ne3 {[%emt 0:00:21]} a5 {[%emt 0:00:02]} 25. Rc3 {[%emt 0:01:04]} Rxc3 {[%emt 0:01:24]} 26. bxc3 {[%emt 0:00:03]} Bf7 {[%emt 0:00:03]} 27. c4 {[%emt 0:00:33]} Rc8 {[%emt 0:00:35]} 28. d5 {[%emt 0:00:17]} Qc7 {[%emt 0:00:40]} 29. Qb2 {[%emt 0:00:42]} Qc5 {[%emt 0:00:13]} 30. Qb1 {[%emt 0:00:15]} Qd4 {[%emt 0:00:14]} 31. Nf5 {[%emt 0:00:21]} Qe5 {[%emt 0:00:03]} 32. Qxe4 {[%emt 0:00:06]} Kf8 {[%emt 0:00:06]} 33. Qxe5 {[%emt 0:00:14]} fxe5 {[%emt 0:00:02]} 34. Nd6 {[%emt 0:00:06]} Rd8 {[%emt 0:00:04]} 35. Nxf7 {[%emt 0:00:22]} Kxf7 {[%emt 0:00:00]} 36. Rxe5 {[%emt 0:00:02]} Rc8 {[%emt 0:00:06]} 37. Re4 {[%emt 0:00:02]} Rc5 {[%emt 0:00:01]} 38. a4 {[%emt 0:00:04]} Rc7 {[%emt 0:00:02]} 39. f3 {[%emt 0:00:12]} h5 {[%emt 0:00:01]} 40. Kf2 {[%emt 0:00:06]} Kf6 {[%emt 0:00:06]} 41. Ke3 {[%emt 0:00:07]} Kf5 {[%emt 0:00:01]} 42. g4+ {[%emt 0:00:12]} hxg4 {[%emt 0:00:01]} 43. Rxg4 {[%emt 0:00:02]} g5 {[%emt 0:00:06]} 44. Re4 {[%emt 0:00:08]} Rh7 {[%emt 0:00:02]} 45. g4+ {[%emt 0:00:02]} Kf6 {[%emt 0:00:03]} 46. Re6+ {[%emt 0:00:02]} Kf7 {[%emt 0:00:00]} 47. Rxb6 {[%emt 0:00:01]} Rh1 {[%emt 0:00:01]} 48. Ke4 {[%emt 0:00:07]} Rf1 {[%emt 0:00:03]} 49. c5 {[%emt 0:00:05]} 1-0

[Event "HUN-ch Rapid 2018"]
[Site "Ajka"]
[Date "2018.07.20"]
[Round "4"]
[White "Bagi, Mate"]
[Black "Szakolczai, Peter"]
[Result "1/2-1/2"]
[ECO "B40"]
[WhiteElo "2394"]
[BlackElo "2194"]
[Annotator "NA"]
[PlyCount "150"]
[EventDate "2018.07.20"]
[EventType "swiss"]
[EventCountry "HUN"]
[SourceTitle "playchess.com"]
[Source "ChessBase"]
[SourceQuality "1"]
[TimeControl "1200+5"]

1. e4 {[%emt 0:00:03]} c5 {[%emt 0:00:04]} 2. Nf3 {[%emt 0:00:03]} e6 {[%emt 0:00:08]} 3. d4 {[%emt 0:00:02]} cxd4 {[%emt 0:00:05]} 4. Nxd4 {[%emt 0:00:02]} Nf6 {[%emt 0:00:05]} 5. Nc3 {[%emt 0:00:05]} Qb6 {[%emt 0:00:08]} 6. Nb3 {[%emt 0:00:18]} Bb4 {[%emt 0:00:02]} 7. Bd3 {[%emt 0:00:13]} d6 {[%emt 0:00:04]} 8. O-O {[%emt 0:00:34]} Bxc3 {[%emt 0:00:02]} 9. bxc3 {[%emt 0:00:02]} e5 {[%emt 0:00:05]} 10. Nd2 {[%emt 0:02:24]} O-O {[%emt 0:00:50]} 11. Nc4 {[%emt 0:00:15]} Qc7 {[%emt 0:00:06]} 12. Qe2 {[%emt 0:00:35]} Nbd7 {[%emt 0:00:40]} 13. f4 {[%emt 0:01:14]} Re8 {[%emt 0:01:52]} 14. Ba3 {[%emt 0:02:33]} Nc5 {[%emt 0:00:12]} 15. fxe5 {[%emt 0:00:10]} dxe5 {[%emt 0:00:05]} 16. Ne3 {[%emt 0:02:20]} Nxd3 {[%emt 0:03:11]} 17. cxd3 {[%emt 0:00:28]} Qxc3 {[%emt 0:00:39]} 18. Bb2 {[%emt 0:00:47]} Qc6 {[%emt 0:00:15]} 19. Nc4 {[%emt 0:01:05]} Ng4 {[%emt 0:02:08]} 20. Rac1 {[%emt 0:01:17]} f6 {[%emt 0:01:12]} 21. Kh1 {[%emt 0:01:06]} Qe6 {[%emt 0:00:31]} 22. Ba3 {[%emt 0:01:00]} Rd8 {[%emt 0:00:10]} 23. h3 {[%emt 0:00:03]} Nh6 {[%emt 0:00:02]} 24. Ne3 {[%emt 0:00:04]} Qa6 {[%emt 0:00:53]} 25. Rc3 {[%emt 0:00:33]} Be6 {[%emt 0:00:03]} 26. Be7 {[%emt 0:00:55]} Rac8 {[%emt 0:00:45]} 27. Ra3 {[%emt 0:00:10]} Qb6 {[%emt 0:00:39]} 28. Bxd8 {[%emt 0:00:05]} Rxd8 {[%emt 0:00:12]} 29. Nc4 {[%emt 0:00:29]} Qd4 {[%emt 0:00:27]} 30. Qb2 {[%emt 0:00:51]} a6 {[%emt 0:01:14]} 31. Qxd4 {[%emt 0:00:18]} Rxd4 {[%emt 0:00:01]} 32. Rc1 {[%emt 0:00:07]} Nf7 {[%emt 0:00:11]} 33. Rac3 {[%emt 0:00:31]} h5 {[%emt 0:00:09]} 34. a3 {[%emt 0:00:12]} h4 {[%emt 0:00:07]} 35. Na5 {[%emt 0:00:07]} f5 {[%emt 0:00:32]} 36. Nxb7 {[%emt 0:00:13]} fxe4 {[%emt 0:00:14]} 37. dxe4 {[%emt 0:00:06]} Ng5 {[%emt 0:00:26]} 38. Nc5 {[%emt 0:00:03]} Bf7 {[%emt 0:00:19]} 39. Rd3 {[%emt 0:00:16]} Nxe4 {[%emt 0:00:12]} 40. Rxd4 {[%emt 0:00:06]} Ng3+ {[%emt 0:00:01]} 41. Kh2 {[%emt 0:00:16]} exd4 {[%emt 0:00:03]} 42. Rd1 {[%emt 0:00:09]} Nf5 {[%emt 0:00:06]} 43. Nxa6 {[%emt 0:00:06]} Bc4 {[%emt 0:00:40]} 44. Nb4 {[%emt 0:00:03]} Be2 {[%emt 0:00:02]} 45. Rd2 {[%emt 0:00:05]} Bb5 {[%emt 0:00:08]} 46. Nc2 {[%emt 0:00:23]} d3 {[%emt 0:00:25]} 47. Ne1 {[%emt 0:00:02]} Ng3 {[%emt 0:00:06]} 48. Kg1 {[%emt 0:00:30]} Ne4 {[%emt 0:00:02]} 49. Rxd3 {[%emt 0:00:09]} Bxd3 {[%emt 0:00:05]} 50. Nxd3 {[%emt 0:00:01]} Nc3 {[%emt 0:00:13]} 51. Kf2 {[%emt 0:00:03]} Kf7 {[%emt 0:00:01]} 52. Ke3 {[%emt 0:00:07]} Ke6 {[%emt 0:00:09]} 53. Kf4 {[%emt 0:00:04]} Kf6 {[%emt 0:00:06]} 54. Nc5 {[%emt 0:00:01]} g5+ {[%emt 0:00:05]} 55. Kg4 {[%emt 0:00:04]} Kg6 {[%emt 0:00:23]} 56. a4 {[%emt 0:00:06]} Ne2 {[%emt 0:00:17]} 57. a5 {[%emt 0:00:18]} Nd4 {[%emt 0:00:04]} 58. a6 {[%emt 0:00:01]} Nc6 {[%emt 0:00:03]} 59. Kf3 {[%emt 0:00:02]} Kf5 {[%emt 0:00:01]} 60. Nd7 {[%emt 0:00:05]} Nd4+ {[%emt 0:00:24]} 61. Ke3 {[%emt 0:00:01]} Nc6 {[%emt 0:00:03]} 62. Nc5 {[%emt 0:00:18]} g4 {[%emt 0:00:07]} 63. Nd3 {[%emt 0:00:08]} gxh3 {[%emt 0:00:08]} 64. gxh3 {[%emt 0:00:01]} Kg5 {[%emt 0:00:18]} 65. Ke4 {[%emt 0:00:02]} Kf6 {[%emt 0:00:03]} 66. Kd5 {[%emt 0:00:02]} Na7 {[%emt 0:00:03]} 67. Ke4 {[%emt 0:00:09]} Nc6 {[%emt 0:00:06]} 68. Nc5 {[%emt 0:00:12]} Kg5 {[%emt 0:00:05]} 69. Nd7 {[%emt 0:00:02]} Na7 {[%emt 0:00:18]} 70. Ne5 {[%emt 0:00:01]} Nb5 {[%emt 0:00:06]} 71. Nf3+ {[%emt 0:00:03]} Kh5 {[%emt 0:00:03]} 72. Kf5 {[%emt 0:00:02]} Na7 {[%emt 0:00:02]} 73. Kf6 {[%emt 0:00:02]} Nb5 {[%emt 0:00:01]} 74. Ke6 {[%emt 0:00:02]} Nc7+ {[%emt 0:00:09]} 75. Kf5 {[%emt 0:00:06]} Nxa6 {[%emt 0:00:03]} 1/2-1/2

[Event "HUN-ch Rapid 2018"]
[Site "Ajka"]
[Date "2018.07.20"]
[Round "4"]
[White "Hajnal, Zoltan"]
[Black "Varga, Klara"]
[Result "1-0"]
[ECO "C16"]
[WhiteElo "2357"]
[BlackElo "2183"]
[Annotator "NA"]
[PlyCount "55"]
[EventDate "2018.07.20"]
[EventType "swiss"]
[EventCountry "HUN"]
[SourceTitle "playchess.com"]
[Source "ChessBase"]
[SourceQuality "1"]
[TimeControl "1200+5"]

1. e4 {[%emt 0:00:02]} e6 {[%emt 0:00:01]} 2. d4 {[%emt 0:00:02]} d5 {[%emt 0:00:01]} 3. Nc3 {[%emt 0:00:02]} Bb4 {[%emt 0:00:04]} 4. e5 {[%emt 0:00:35]} Ne7 {[%emt 0:00:01]} 5. Bd2 {[%emt 0:00:52]} c5 {[%emt 0:00:16]} 6. Nb5 {[%emt 0:00:10]} Bxd2+ {[%emt 0:00:08]} 7. Qxd2 {[%emt 0:00:01]} O-O {[%emt 0:00:05]} 8. f4 {[%emt 0:00:08]} a6 {[%emt 0:00:03]} 9. Nd6 {[%emt 0:00:02]} cxd4 {[%emt 0:00:09]} 10. Nf3 {[%emt 0:00:04]} Nbc6 {[%emt 0:00:29]} 11. Bd3 {[%emt 0:00:02]} f6 {[%emt 0:00:21]} 12. O-O {[%emt 0:00:09]} b5 {[%emt 0:02:49]} 13. Qf2 {[%emt 0:04:45]} g6 {[%emt 0:03:33]} 14. Qh4 {[%emt 0:08:17]} Kg7 {[%emt 0:02:53]} 15. Rae1 {[%emt 0:00:20]} Bd7 {[%emt 0:02:03]} 16. g4 {[%emt 0:01:47]} Ng8 {[%emt 0:02:40]} 17. Qg3 {[%emt 0:01:44]} Qe7 {[%emt 0:00:22]} 18. exf6+ {[%emt 0:00:32]} Rxf6 {[%emt 0:00:33]} 19. f5 {[%emt 0:00:08]} e5 {[%emt 0:00:26]} 20. Nxe5 {[%emt 0:00:12]} Qxd6 {[%emt 0:00:29]} 21. g5 {[%emt 0:00:01]} Rff8 {[%emt 0:00:26]} 22. f6+ {[%emt 0:00:06]} Nxf6 {[%emt 0:00:11]} 23. gxf6+ {[%emt 0:00:02]} Kg8 {[%emt 0:00:29]} 24. Bxg6 {[%emt 0:00:20]} Nxe5 {[%emt 0:00:25]} 25. Rxe5 {[%emt 0:00:31]} Rxf6 {[%emt 0:00:52]} 26. Bxh7+ {[%emt 0:00:39]} Kh8 {[%emt 0:00:48]} 27. Rxf6 {[%emt 0:00:01]} Qxf6 {[%emt 0:00:03]} 28. Rh5 {[%emt 0:00:00]} 1-0

[Event "HUN-ch Rapid 2018"]
[Site "Ajka"]
[Date "2018.07.20"]
[Round "4"]
[White "Kiss, Pal"]
[Black "Paksa, Rudolf"]
[Result "1-0"]
[ECO "E15"]
[WhiteElo "2356"]
[BlackElo "2073"]
[Annotator "NA"]
[PlyCount "101"]
[EventDate "2018.07.20"]
[EventType "swiss"]
[EventCountry "HUN"]
[SourceTitle "playchess.com"]
[Source "ChessBase"]
[SourceQuality "1"]
[TimeControl "1200+5"]

1. d4 {[%emt 0:00:03]} Nf6 {[%emt 0:00:02]} 2. c4 {[%emt 0:00:01]} e6 {[%emt 0:00:06]} 3. Nf3 {[%emt 0:00:02]} b6 {[%emt 0:00:10]} 4. g3 {[%emt 0:00:02]} Ba6 {[%emt 0:00:10]} 5. b3 {[%emt 0:00:02]} d5 {[%emt 0:00:22]} 6. cxd5 {[%emt 0:01:15]} exd5 {[%emt 0:00:04]} 7. Bg2 {[%emt 0:00:02]} Bb4+ {[%emt 0:00:10]} 8. Bd2 {[%emt 0:00:04]} Bxd2+ {[%emt 0:00:08]} 9. Nbxd2 {[%emt 0:00:27]} O-O {[%emt 0:00:02]} 10. O-O {[%emt 0:00:10]} Re8 {[%emt 0:00:09]} 11. Re1 {[%emt 0:00:22]} c5 {[%emt 0:00:02]} 12. Rc1 {[%emt 0:01:22]} Qd6 {[%emt 0:00:25]} 13. dxc5 {[%emt 0:00:58]} bxc5 {[%emt 0:00:02]} 14. e4 {[%emt 0:02:37]} Nbd7 {[%emt 0:00:43]} 15. exd5 {[%emt 0:00:22]} Rxe1+ {[%emt 0:00:05]} 16. Nxe1 {[%emt 0:00:22]} Re8 {[%emt 0:00:06]} 17. Nc4 {[%emt 0:00:54]} Qe7 {[%emt 0:00:50]} 18. Nd3 {[%emt 0:01:36]} h6 {[%emt 0:00:12]} 19. d6 {[%emt 0:03:13]} Qf8 {[%emt 0:01:07]} 20. Ndb2 {[%emt 0:01:32]} g5 {[%emt 0:00:39]} 21. Qd2 {[%emt 0:00:34]} Ne4 {[%emt 0:00:29]} 22. Qd5 {[%emt 0:00:45]} Nef6 {[%emt 0:00:40]} 23. Qc6 {[%emt 0:00:18]} Bxc4 {[%emt 0:00:12]} 24. Nxc4 {[%emt 0:00:02]} Rc8 {[%emt 0:00:10]} 25. Qb7 {[%emt 0:00:41]} a5 {[%emt 0:00:10]} 26. Rd1 {[%emt 0:00:35]} Kg7 {[%emt 0:00:15]} 27. Bc6 {[%emt 0:00:29]} Qd8 {[%emt 0:00:25]} 28. Bxd7 {[%emt 0:00:35]} Nxd7 {[%emt 0:00:06]} 29. Re1 {[%emt 0:00:09]} Rb8 {[%emt 0:00:16]} 30. Qc7 {[%emt 0:00:01]} Qxc7 {[%emt 0:00:22]} 31. dxc7 Rc8 32. Re7 {[%emt 0:00:12]} Rxc7 {[%emt 0:00:03]} 33. Ne5 {[%emt 0:00:49]} c4 {[%emt 0:00:19]} 34. bxc4 {[%emt 0:00:19]} Rc5 {[%emt 0:00:34]} 35. Rxf7+ {[%emt 0:00:12]} Kg8 {[%emt 0:00:07]} 36. Nxd7 {[%emt 0:00:04]} Rxc4 {[%emt 0:00:01]} 37. Re7 {[%emt 0:00:06]} Rc2 {[%emt 0:00:10]} 38. a3 {[%emt 0:00:09]} Rd2 {[%emt 0:00:21]} 39. Nc5 {[%emt 0:00:17]} Ra2 {[%emt 0:00:07]} 40. Re3 {[%emt 0:00:02]} Kf7 {[%emt 0:00:05]} 41. Nb7 {[%emt 0:00:04]} a4 {[%emt 0:00:08]} 42. Nc5 {[%emt 0:00:01]} Rc2 {[%emt 0:00:03]} 43. Nxa4 {[%emt 0:00:03]} Rc4 {[%emt 0:00:01]} 44. Nb2 {[%emt 0:00:05]} Rc2 {[%emt 0:00:00]} 45. Rb3 {[%emt 0:00:02]} h5 {[%emt 0:00:05]} 46. Kg2 {[%emt 0:00:04]} h4 {[%emt 0:00:04]} 47. a4 {[%emt 0:00:12]} h3+ {[%emt 0:00:07]} 48. Kxh3 {[%emt 0:00:05]} Rxf2 {[%emt 0:00:01]} 49. a5 {[%emt 0:00:15]} Kg6 {[%emt 0:00:01]} 50. g4 {[%emt 0:00:06]} Rf1 {[%emt 0:00:09]} 51. Ra3 {[%emt 0:00:04]} 1-0

[Event "HUN-ch Rapid 2018"]
[Site "Ajka"]
[Date "2018.07.20"]
[Round "4"]
[White "Hoang, Thanh Trang"]
[Black "Szukics, Adam"]
[Result "1-0"]
[ECO "D00"]
[WhiteElo "2351"]
[BlackElo "2010"]
[Annotator "NA"]
[PlyCount "87"]
[EventDate "2018.07.20"]
[EventType "swiss"]
[EventCountry "HUN"]
[SourceTitle "playchess.com"]
[Source "ChessBase"]
[SourceQuality "1"]
[TimeControl "1200+5"]

1. d4 {[%emt 0:00:03]} d5 {[%emt 0:00:01]} 2. Bf4 {[%emt 0:00:06]} Nf6 {[%emt 0:00:09]} 3. e3 {[%emt 0:00:03]} c5 {[%emt 0:00:03]} 4. Nf3 {[%emt 0:00:06]} Nc6 {[%emt 0:00:11]} 5. c3 {[%emt 0:00:06]} Qb6 {[%emt 0:00:37]} 6. Qc2 {[%emt 0:00:29]} Bf5 {[%emt 0:00:25]} 7. dxc5 {[%emt 0:00:35]} Bxc2 {[%emt 0:01:36]} 8. cxb6 {[%emt 0:00:04]} axb6 {[%emt 0:02:03]} 9. Na3 {[%emt 0:00:09]} Be4 {[%emt 0:00:27]} 10. Nb5 {[%emt 0:00:44]} Rc8 {[%emt 0:01:26]} 11. Ne5 {[%emt 0:00:56]} Nxe5 {[%emt 0:02:21]} 12. Bxe5 {[%emt 0:00:04]} Nd7 {[%emt 0:00:00]} 13. Bg3 {[%emt 0:00:17]} h5 {[%emt 0:00:56]} 14. h4 {[%emt 0:00:57]} f6 {[%emt 0:03:33]} 15. f3 {[%emt 0:00:15]} Bf5 {[%emt 0:00:01]} 16. Nc7+ {[%emt 0:00:26]} Kf7 {[%emt 0:00:33]} 17. Nxd5 {[%emt 0:00:11]} e6 {[%emt 0:00:11]} 18. Nf4 {[%emt 0:01:28]} Bc5 {[%emt 0:00:23]} 19. e4 {[%emt 0:00:09]} Bg6 {[%emt 0:00:18]} 20. Nxg6 {[%emt 0:02:41]} Kxg6 {[%emt 0:00:02]} 21. Bb5 {[%emt 0:00:02]} Rhd8 {[%emt 0:00:35]} 22. Rd1 {[%emt 0:00:05]} Nf8 {[%emt 0:00:33]} 23. Ke2 {[%emt 0:00:16]} e5 {[%emt 0:00:01]} 24. Rxd8 {[%emt 0:00:21]} Rxd8 {[%emt 0:00:01]} 25. b4 {[%emt 0:00:34]} Be7 {[%emt 0:00:06]} 26. Bf2 {[%emt 0:00:10]} Rc8 {[%emt 0:00:30]} 27. Kd3 {[%emt 0:00:21]} Bd8 {[%emt 0:00:50]} 28. g3 {[%emt 0:00:27]} Kh6 {[%emt 0:00:30]} 29. Be3+ {[%emt 0:00:27]} g5 {[%emt 0:00:19]} 30. hxg5+ {[%emt 0:00:19]} fxg5 {[%emt 0:00:02]} 31. g4 {[%emt 0:00:05]} Be7 {[%emt 0:00:47]} 32. Rxh5+ {[%emt 0:00:11]} Kg6 {[%emt 0:00:01]} 33. Bxb6 {[%emt 0:01:11]} Ne6 {[%emt 0:00:01]} 34. Bd7 {[%emt 0:00:22]} Nf4+ {[%emt 0:00:28]} 35. Kc2 {[%emt 0:00:02]} Ra8 {[%emt 0:01:01]} 36. Bf5+ {[%emt 0:00:06]} Kf6 {[%emt 0:00:02]} 37. Rh6+ {[%emt 0:00:06]} Kg7 {[%emt 0:00:02]} 38. Rh7+ {[%emt 0:00:04]} Kf6 {[%emt 0:00:09]} 39. Kb3 {[%emt 0:00:06]} Nd3 {[%emt 0:00:45]} 40. Be3 {[%emt 0:00:33]} b5 {[%emt 0:00:44]} 41. Rh6+ {[%emt 0:01:28]} Kf7 {[%emt 0:00:16]} 42. Rb6 {[%emt 0:00:09]} Ne1 {[%emt 0:00:23]} 43. Rxb5 {[%emt 0:00:09]} Nxf3 {[%emt 0:00:01]} 44. a4 {[%emt 0:00:05]} 1-0

[Event "HUN-ch Rapid 2018"]
[Site "Ajka"]
[Date "2018.07.20"]
[Round "4"]
[White "Deak, Sandor"]
[Black "Virag, Balint"]
[Result "1/2-1/2"]
[ECO "D31"]
[WhiteElo "2335"]
[BlackElo "2018"]
[Annotator "NA"]
[PlyCount "79"]
[EventDate "2018.07.20"]
[EventType "swiss"]
[EventCountry "HUN"]
[SourceTitle "playchess.com"]
[Source "ChessBase"]
[SourceQuality "1"]
[TimeControl "1200+5"]

1. d4 {[%emt 0:00:01]} d5 {[%emt 0:00:10]} 2. c4 {[%emt 0:00:01]} e6 {[%emt 0:00:01]} 3. Nc3 {[%emt 0:00:01]} a6 {[%emt 0:00:01]} 4. cxd5 {[%emt 0:00:17]} exd5 {[%emt 0:00:02]} 5. Nf3 {[%emt 0:00:10]} Nf6 {[%emt 0:00:02]} 6. Bg5 {[%emt 0:00:04]} Be6 {[%emt 0:00:31]} 7. e3 {[%emt 0:00:06]} Bb4 {[%emt 0:00:44]} 8. Bd3 {[%emt 0:00:02]} O-O {[%emt 0:00:06]} 9. Qc2 {[%emt 0:00:34]} h6 {[%emt 0:00:05]} 10. Bh4 {[%emt 0:00:08]} Nbd7 {[%emt 0:00:09]} 11. a3 {[%emt 0:00:12]} Bd6 {[%emt 0:00:08]} 12. O-O {[%emt 0:00:43]} c5 {[%emt 0:00:07]} 13. dxc5 {[%emt 0:00:21]} Nxc5 {[%emt 0:00:08]} 14. Bh7+ {[%emt 0:00:15]} Kh8 {[%emt 0:00:06]} 15. b4 {[%emt 0:00:01]} Ncd7 {[%emt 0:00:24]} 16. Bd3 {[%emt 0:00:04]} Rc8 {[%emt 0:00:05]} 17. Rac1 {[%emt 0:00:26]} a5 {[%emt 0:00:17]} 18. Qb2 {[%emt 0:00:39]} Ne5 {[%emt 0:00:21]} 19. Nxe5 {[%emt 0:00:21]} Bxe5 {[%emt 0:00:02]} 20. Bg3 {[%emt 0:00:01]} Bxg3 {[%emt 0:00:34]} 21. hxg3 {[%emt 0:00:01]} d4 {[%emt 0:00:16]} 22. exd4 {[%emt 0:00:01]} Qxd4 {[%emt 0:00:01]} 23. Rfd1 {[%emt 0:00:02]} Qe5 {[%emt 0:00:13]} 24. Qe2 {[%emt 0:01:32]} Qxe2 {[%emt 0:00:56]} 25. Bxe2 {[%emt 0:00:18]} axb4 {[%emt 0:00:02]} 26. axb4 {[%emt 0:00:01]} Rfd8 {[%emt 0:00:16]} 27. Rxd8+ Rxd8 28. Bf3 {[%emt 0:00:54]} b6 {[%emt 0:00:23]} 29. Na4 {[%emt 0:00:10]} b5 {[%emt 0:00:01]} 30. Nc5 {[%emt 0:00:43]} Bc4 {[%emt 0:00:04]} 31. Ra1 {[%emt 0:01:05]} Rd2 {[%emt 0:00:22]} 32. g4 {[%emt 0:09:27]} Rb2 {[%emt 0:01:13]} 33. Na6 {[%emt 0:00:05]} Kh7 {[%emt 0:00:45]} 34. Rd1 {[%emt 0:00:48]} Kg6 {[%emt 0:01:56]} 35. Rd4 {[%emt 0:00:00]} Rb1+ {[%emt 0:00:39]} 36. Kh2 {[%emt 0:00:01]} Rb2 {[%emt 0:00:52]} 37. Kg3 {[%emt 0:00:01]} Rb3 {[%emt 0:00:26]} 38. Kh2 {[%emt 0:01:21]} Rb2 {[%emt 0:00:22]} 39. Kg3 {[%emt 0:00:01]} Rb3 {[%emt 0:00:03]} 40. Kh2 {[%emt 0:00:27]} 1/2-1/2

[Event "HUN-ch Rapid 2018"]
[Site "Ajka"]
[Date "2018.07.20"]
[Round "4"]
[White "Csonka, Balazs"]
[Black "Galyas, Miklos"]
[Result "0-1"]
[ECO "D15"]
[WhiteElo "2311"]
[BlackElo "2382"]
[Annotator "NA"]
[PlyCount "96"]
[EventDate "2018.07.20"]
[EventType "swiss"]
[EventCountry "HUN"]
[SourceTitle "playchess.com"]
[Source "ChessBase"]
[SourceQuality "1"]
[TimeControl "1200+5"]

1. Nf3 {[%emt 0:00:16]} d5 {[%emt 0:00:13]} 2. d4 {[%emt 0:00:03]} Nf6 {[%emt 0:00:02]} 3. c4 {[%emt 0:00:02]} c6 {[%emt 0:00:01]} 4. Nc3 {[%emt 0:00:06]} a6 {[%emt 0:00:01]} 5. Qc2 {[%emt 0:03:31]} dxc4 {[%emt 0:00:51]} 6. e4 {[%emt 0:00:02]} b5 {[%emt 0:00:03]} 7. b3 {[%emt 0:00:06]} cxb3 {[%emt 0:01:47]} 8. axb3 {[%emt 0:00:03]} e6 {[%emt 0:00:02]} 9. e5 {[%emt 0:02:29]} Nd5 {[%emt 0:00:45]} 10. Nxd5 {[%emt 0:00:03]} exd5 {[%emt 0:01:07]} 11. Bd2 {[%emt 0:01:11]} Be7 {[%emt 0:00:14]} 12. Bd3 {[%emt 0:02:10]} h6 {[%emt 0:00:02]} 13. Ba5 {[%emt 0:02:52]} Qd7 {[%emt 0:00:01]} 14. O-O {[%emt 0:00:09]} O-O {[%emt 0:00:26]} 15. Rae1 {[%emt 0:02:46]} Qe6 {[%emt 0:02:10]} 16. b4 {[%emt 0:01:13]} c5 {[%emt 0:00:52]} 17. bxc5 {[%emt 0:00:49]} Nc6 {[%emt 0:00:01]} 18. Bc3 {[%emt 0:02:06]} b4 {[%emt 0:00:06]} 19. Bb2 {[%emt 0:00:09]} a5 {[%emt 0:00:03]} 20. Ra1 {[%emt 0:00:28]} Bd7 {[%emt 0:00:32]} 21. h3 {[%emt 0:00:43]} a4 {[%emt 0:02:03]} 22. g4 {[%emt 0:00:01]} Bd8 {[%emt 0:00:00]} 23. Bf5 {[%emt 0:00:21]} Qe8 {[%emt 0:00:02]} 24. Rfe1 {[%emt 0:00:10]} Be6 {[%emt 0:00:51]} 25. Qd3 {[%emt 0:00:08]} Qd7 {[%emt 0:00:16]} 26. Bc1 Ne7 {[%emt 0:00:07]} 27. Nh4 {[%emt 0:00:10]} b3 {[%emt 0:00:42]} 28. f4 {[%emt 0:00:03]} Nc6 {[%emt 0:00:12]} 29. Bxe6 {[%emt 0:00:05]} fxe6 {[%emt 0:00:03]} 30. Ng6 {[%emt 0:00:01]} Rf7 {[%emt 0:00:21]} 31. Bd2 {[%emt 0:00:04]} Ne7 {[%emt 0:01:52]} 32. Nxe7+ {[%emt 0:00:08]} Bxe7 {[%emt 0:00:36]} 33. f5 {[%emt 0:00:06]} Qc6 {[%emt 0:01:12]} 34. f6 {[%emt 0:00:07]} Bf8 {[%emt 0:00:27]} 35. g5 {[%emt 0:00:04]} hxg5 {[%emt 0:00:02]} 36. Bxg5 {[%emt 0:00:01]} Qa6 {[%emt 0:00:21]} 37. Qg6 {[%emt 0:00:02]} b2 {[%emt 0:00:12]} 38. Ra3 {[%emt 0:00:01]} Qc4 {[%emt 0:00:13]} 39. Rg3 {[%emt 0:00:13]} Qxd4+ {[%emt 0:00:09]} 40. Kh1 {[%emt 0:00:10]} Rb8 {[%emt 0:00:38]} 41. fxg7 {[%emt 0:00:05]} Bxg7 {[%emt 0:00:16]} 42. Bf6 {[%emt 0:00:05]} Qe4+ {[%emt 0:00:30]} 43. Qxe4 {[%emt 0:00:04]} dxe4 {[%emt 0:00:01]} 44. Rb1 {[%emt 0:00:06]} Kf8 {[%emt 0:00:35]} 45. c6 {[%emt 0:00:05]} Bxf6 {[%emt 0:00:17]} 46. exf6 {[%emt 0:00:02]} Rc7 {[%emt 0:00:01]} 47. Kh2 {[%emt 0:00:09]} Rxc6 {[%emt 0:00:02]} 48. f7 {[%emt 0:00:04]} Rc2+ {[%emt 0:00:05]} 0-1